fUST/lending_fUST_20250302
["ID","MTS","AMOUNT","RATE_DAILY","PERIOD"]
[355051642,1740882639012,-500.0,0.00024657,2]
[355051643,1740882639023,-500.0,0.00024657,2]
[355051644,1740882639033,-500.0,0.00024657,2]
[355051645,1740882639045,-500.0,0.00024657,2]
[355051646,1740882639057,-500.0,0.00024657,2]
[355051647,1740882639067,-500.0,0.00024657,2]
[355051648,1740882639077,-848.79,0.00024657,2]
[355051649,1740882639088,-500.0,0.00024657,2]
[355051650,1740882639098,-504.52378341,0.00024657,2]
[355051651,1740882639108,-500.17855378,0.00024657,2]
[355051652,1740882639118,-500.0,0.00024657,2]
[355051653,1740882639129,-500.0,0.00024657,2]
[355051654,1740882639139,-500.0,0.00024657,2]
[355051655,1740882639149,-500.0,0.00024657,2]
[355051656,1740882639160,-500.0,0.00024657,2]
[355051657,1740882639173,-500.0,0.00024657,2]
[355051658,1740882639184,-601.45,0.00024657,2]
[355051659,1740882639194,-500.0,0.00024657,2]
[355051660,1740882639207,-500.0,0.00024657,2]
[355051661,1740882639218,-500.0,0.00024657,2]
[355051662,1740882639232,-500.0,0.00024657,2]
[355051663,1740882639243,-500.0,0.00024657,2]
[355051664,1740882639254,-500.0,0.00024657,2]
[355051665,1740882639265,-946.7,0.00024657,2]
[355051666,1740882639276,-500.0,0.00024657,2]
[355051667,1740882639288,-500.0,0.00024657,2]
[355051668,1740882639299,-500.0,0.00024657,2]
[355051669,1740882639310,-504.32877017,0.00024657,2]
[355051670,1740882639321,-506.02269218,0.00024657,2]
[355051671,1740882639332,-502.45105904,0.00024657,2]
[355051672,1740882639342,-500.0,0.00024657,2]
[355051673,1740882639352,-500.0,0.00024657,2]
[355051674,1740882639363,-500.0,0.00024657,2]
[355051675,1740882639375,-501.06919943,0.00024657,2]
[355051677,1740882639386,-798.08,0.00024657,2]
[355051679,1740882639396,-500.0,0.00024657,2]
[355051680,1740882639407,-1191.66,0.00024657,2]
[355051681,1740882639417,-500.0,0.00024657,2]
[355051682,1740882639428,-508.38322203,0.00024657,2]
[355051683,1740882639438,-500.0,0.00024657,2]
[355051684,1740882639448,-500.0,0.00024657,2]
[355051685,1740882639458,-500.0,0.00024657,2]
[355051686,1740882639468,-500.0,0.00024657,2]
[355051688,1740882639481,-504.78067994,0.00024657,2]
[355051690,1740882639492,-500.0,0.00024657,2]
[355051691,1740882639502,-500.0,0.00024657,2]
[355051693,1740882639512,-500.0,0.00024657,2]
[355051694,1740882639523,-503.72597087,0.00024657,2]
[355051695,1740882639533,-500.0,0.00024657,2]
[355051696,1740882639543,-500.0,0.00024657,2]
[355051697,1740882639553,-500.0,0.00024657,2]
[355051698,1740882639563,-500.0,0.00024657,2]
[355051699,1740882639572,-500.7047641,0.00024657,2]
[355051700,1740882639582,-500.0,0.00024657,2]
[355051701,1740882639592,-500.0,0.00024657,2]
[355051702,1740882639602,-500.0,0.00024657,2]
[355051703,1740882639613,-500.0,0.00024657,2]
[355051705,1740882639623,-500.0,0.00024657,2]
[355051707,1740882639633,-500.0,0.00024657,2]
[355051708,1740882639643,-500.0,0.00024657,2]
[355051709,1740882639653,-573.55088134,0.00024657,2]
[355051710,1740882639664,-503.30164278,0.00024657,2]
[355051711,1740882639674,-500.0,0.00024657,2]
[355051712,1740882639684,-500.0,0.00024657,2]
[355051713,1740882639694,-500.0,0.00024657,2]
[355051714,1740882639704,-500.0,0.00024657,2]
[355051715,1740882639722,-500.0,0.00024657,2]
[355051716,1740882639738,-500.7592731,0.00024657,2]
[355051717,1740882639749,-500.0,0.00024657,2]
[355051718,1740882639759,-500.0,0.00024657,2]
[355051719,1740882639769,-500.0,0.00024657,2]
[355051720,1740882639780,-500.0,0.00024657,2]
[355051721,1740882639790,-500.33,0.00024657,2]
[355051722,1740882639800,-500.0,0.00024657,2]
[355051723,1740882639811,-500.0,0.00024657,2]
[355051724,1740882639821,-500.0,0.00024657,2]
[355051725,1740882639833,-258.4546346,0.00024657,2]
[355051726,1740882639843,-500.0,0.00024657,2]
[355051727,1740882639853,-500.0,0.00024657,2]
[355051728,1740882639865,-500.0,0.00024657,2]
[355051729,1740882639875,-500.0,0.00024657,2]
[355051730,1740882639885,-1144.38,0.00024657,2]
[355051731,1740882639895,-500.0,0.00024657,2]
[355051732,1740882639906,-500.18864872,0.00024657,2]
[355051733,1740882639916,-500.0,0.00024657,2]
[355051734,1740882639926,-500.0,0.00024657,2]
[355051735,1740882639936,-500.0,0.00024657,2]
[355051736,1740882639947,-524.64367414,0.00024657,2]
[355051737,1740882639957,-500.0,0.00024657,2]
[355051738,1740882639967,-501.84234167,0.00024657,2]
[355051739,1740882639980,-955.47,0.00024657,2]
[355051740,1740882639990,-500.0,0.00024657,2]
[355051741,1740882640000,-500.0,0.00024657,2]
[355051742,1740882640010,-500.0,0.00024657,2]
[355051743,1740882640020,-500.0,0.00024657,2]
[355051744,1740882640030,-678.05,0.00024657,2]
[355051745,1740882640041,-544.07,0.00024657,2]
[355051747,1740882640051,-500.0,0.00024657,2]
[355051749,1740882640061,-501.62,0.00024657,2]
[355051750,1740882640071,-500.0,0.00024657,2]
[355051751,1740882640081,-503.01396001,0.00024657,2]
[355051752,1740882640092,-500.0,0.00024657,2]
[355051753,1740882640102,-500.0,0.00024657,2]
[355051754,1740882640112,-460.12910156,0.00024657,2]
[355051755,1740882640122,-500.0,0.00024657,2]
[355051756,1740882640136,-500.0,0.00024657,2]
[355051757,1740882640146,-500.0,0.00024657,2]
[355051758,1740882640156,-500.0,0.00024657,2]
[355051759,1740882640167,-503.41645599,0.00024657,2]
[355051760,1740882640178,-500.0,0.00024657,2]
[355051761,1740882640189,-500.0,0.00024657,2]
[355051762,1740882640199,-500.0,0.00024657,2]
[355051763,1740882640209,-500.0,0.00024657,2]
[355051764,1740882640220,-500.0,0.00024657,2]
[355051765,1740882640235,-500.0,0.00024657,2]
[355051766,1740882640245,-500.0,0.00024657,2]
[355051767,1740882640255,-500.0,0.00024657,2]
[355051768,1740882640266,-500.0,0.00024657,2]
[355051769,1740882640276,-616.44,0.00024657,2]
[355051770,1740882640286,-500.0,0.00024657,2]
[355051771,1740882640296,-500.0,0.00024657,2]
[355051772,1740882640307,-500.0,0.00024657,2]
[355051773,1740882640317,-500.0,0.00024657,2]
[355051774,1740882640327,-500.0,0.00024657,2]
[355051775,1740882640337,-500.0,0.00024657,2]
[355051776,1740882640347,-507.57957512,0.00024657,2]
[355051777,1740882640357,-500.0,0.00024657,2]
[355051778,1740882640368,-500.0,0.00024657,2]
[355051779,1740882640378,-500.0,0.00024657,2]
[355051780,1740882640388,-503.2792815,0.00024657,2]
[355051781,1740882640398,-500.0,0.00024657,2]
[355051782,1740882640408,-500.0,0.00024657,2]
[355051783,1740882640418,-500.0,0.00024657,2]
[355051784,1740882640427,-500.0,0.00024657,2]
[355051785,1740882640438,-500.0,0.00024657,2]
[355051786,1740882640448,-500.0,0.00024657,2]
[355051787,1740882640458,-501.69230684,0.00024657,2]
[355051788,1740882640467,-807.41,0.00024657,2]
[355051789,1740882640482,-500.0,0.00024657,2]
[355051790,1740882640492,-500.0,0.00024657,2]
[355051791,1740882640503,-500.0,0.00024657,2]
[355051792,1740882640513,-500.0,0.00024657,2]
[355051793,1740882640525,-500.0,0.00024657,2]
[355051794,1740882640536,-500.0,0.00024657,2]
[355051795,1740882640546,-500.0,0.00024657,2]
[355051796,1740882640557,-500.0,0.00024657,2]
[355051797,1740882640568,-505.4433181,0.00024657,2]
[355051798,1740882640578,-500.0,0.00024657,2]
[355051799,1740882640588,-525.44,0.00024657,2]
[355051800,1740882640598,-681.9,0.00024657,2]
[355051801,1740882640608,-500.0,0.00024657,2]
[355051802,1740882640619,-500.0,0.00024657,2]
[355051803,1740882640630,-1466.47,0.00024657,2]
[355051804,1740882640640,-500.0,0.00024657,2]
[355051805,1740882640650,-500.0,0.00024657,2]
[355051806,1740882640660,-500.0,0.00024657,2]
[355051807,1740882640670,-500.0,0.00024657,2]
[355051808,1740882640680,-500.0,0.00024657,2]
[355051809,1740882640690,-500.0,0.00024657,2]
[355051810,1740882640700,-500.0,0.00024657,2]
[355051811,1740882640710,-523.883852,0.00024657,2]
[355051812,1740882640719,-533.75,0.00024657,2]
[355051813,1740882640731,-500.0,0.00024657,2]
[355051814,1740882640741,-501.33603118,0.00024657,2]
[355051815,1740882640751,-500.0,0.00024657,2]
[355051816,1740882640761,-500.0,0.00024657,2]
[355051817,1740882640770,-500.0,0.00024657,2]
[355051818,1740882640780,-663.86,0.00024657,2]
[355051819,1740882640790,-503.49555938,0.00024657,2]
[355051820,1740882640800,-500.0,0.00024657,2]
[355051821,1740882640810,-503.60802546,0.00024657,2]
[355051822,1740882640819,-500.0,0.00024657,2]
[355051823,1740882640829,-504.88,0.00024657,2]
[355051824,1740882640839,-819.33,0.00024657,2]
[355051825,1740882640849,-500.0,0.00024657,2]
[355051826,1740882640859,-505.377958,0.00024657,2]
[355051827,1740882640869,-651.68,0.00024657,2]
[355051828,1740882640879,-500.0,0.00024657,2]
[355051829,1740882640889,-1842.76,0.00024657,2]
[355051830,1740882640899,-503.36387931,0.00024657,2]
[355051831,1740882640908,-500.0,0.00024657,2]
[355051832,1740882640918,-500.0,0.00024657,2]
[355051833,1740882640927,-500.0,0.00024657,2]
[355051834,1740882640937,-500.0,0.00024657,2]
[355051835,1740882640947,-1735.04,0.00024657,2]
[355051836,1740882640957,-508.53639993,0.00024657,2]
[355051837,1740882640967,-500.0,0.00024657,2]
[355051838,1740882640979,-504.08269304,0.00024657,2]
[355051839,1740882640989,-500.0,0.00024657,2]
[355051840,1740882640998,-500.0,0.00024657,2]
[355051841,1740882641008,-502.8578031,0.00024657,2]
[355051842,1740882641018,-500.0,0.00024657,2]
[355051843,1740882641028,-1071.28,0.00024657,2]
[355051844,1740882641038,-500.0,0.00024657,2]
[355051845,1740882641048,-505.0617703,0.00024657,2]
[355051846,1740882641058,-616.85230613,0.00024657,2]
[355051847,1740882641067,-500.0,0.00024657,2]
[355051848,1740882641077,-500.70512,0.00024657,2]
[355051849,1740882641088,-500.0,0.00024657,2]
[355051850,1740882641097,-500.0,0.00024657,2]
[355051851,1740882641107,-500.0,0.00024657,2]
[355051852,1740882641116,-1896.39,0.00024657,2]
[355051853,1740882641127,-302.36769811,0.00024657,2]
[355051854,1740882641137,-500.0,0.00024657,2]
[355051855,1740882641148,-500.0,0.00024657,2]
[355051856,1740882641159,-500.0,0.00024657,2]
[355051857,1740882641169,-546.66,0.00024657,2]
[355051858,1740882641180,-504.45373739,0.00024657,2]
[355051859,1740882641190,-764.15,0.00024657,2]
[355051860,1740882641199,-500.0,0.00024657,2]
[355051861,1740882641209,-1761.57,0.00024657,2]
[355051862,1740882641221,-536.20010022,0.00024657,2]
[355051863,1740882641233,-503.6309001,0.00024657,2]
[355051864,1740882641242,-500.0,0.00024657,2]
[355051865,1740882641252,-500.0,0.00024657,2]
[355051866,1740882641262,-503.18189351,0.00024657,2]
[355051867,1740882641271,-374.98745368,0.00024657,2]
[355051868,1740882641281,-500.0,0.00024657,2]
[355051869,1740882641291,-500.0,0.00024657,2]
[355051870,1740882641301,-500.0,0.00024657,2]
[355051871,1740882641310,-500.0,0.00024657,2]
[355051872,1740882641320,-534.41,0.00024657,2]
[355051873,1740882641330,-501.0659923,0.00024657,2]
[355051874,1740882641340,-500.0,0.00024657,2]
[355051875,1740882641349,-500.0,0.00024657,2]
[355051876,1740882641359,-500.0,0.00024657,2]
[355051877,1740882641369,-500.0,0.00024657,2]
[355051878,1740882641379,-500.0,0.00024657,2]
[355051879,1740882641390,-500.0,0.00024657,2]
[355051880,1740882641400,-501.47591858,0.00024657,2]
[355051881,1740882641410,-500.0,0.00024657,2]
[355051882,1740882641419,-500.0,0.00024657,2]
[355051883,1740882641429,-500.0,0.00024657,2]
[355051884,1740882641440,-500.0,0.00024657,2]
[355051885,1740882641450,-500.0,0.00024657,2]
[355051886,1740882641459,-500.0,0.00024657,2]
[355051887,1740882641469,-507.27980415,0.00024657,2]
[355051888,1740882641480,-674.54,0.00024657,2]
[355051889,1740882641490,-737.33,0.00024657,2]
[355051890,1740882641500,-500.0,0.00024657,2]
[355051891,1740882641510,-1893.03,0.00024657,2]
[355051892,1740882641520,-500.0,0.00024657,2]
[355051893,1740882641530,-500.0,0.00024657,2]
[355051894,1740882641541,-500.0,0.00024657,2]
[355051895,1740882641551,-1135.49,0.00024657,2]
[355051896,1740882641561,-505.27661161,0.00024657,2]
[355051897,1740882641571,-500.0,0.00024657,2]
[355051898,1740882641580,-500.0,0.00024657,2]
[355051899,1740882641590,-501.94965314,0.00024657,2]
[355051900,1740882641599,-2396.76,0.00024657,2]
[355051901,1740882641609,-500.0,0.00024657,2]
[355051902,1740882641619,-500.0,0.00024657,2]
[355051903,1740882641629,-568.12034872,0.00024657,2]
[355051904,1740882641641,-500.0,0.00024657,2]
[355051905,1740882641650,-1120.4,0.00024657,2]
[355051906,1740882641660,-500.0,0.00024657,2]
[355051907,1740882641669,-1355.76,0.00024657,2]
[355051908,1740882641681,-500.0,0.00024657,2]
[355051909,1740882641690,-500.0,0.00024657,2]
[355051910,1740882641700,-1263.97,0.00024657,2]
[355051911,1740882641710,-500.0,0.00024657,2]
[355051912,1740882641719,-500.0,0.00024657,2]
[355051913,1740882641731,-500.0,0.00024657,2]
[355051914,1740882641741,-2840.49,0.00024657,2]
[355051915,1740882641750,-500.0,0.00024657,2]
[355051916,1740882641760,-500.0,0.00024657,2]
[355051917,1740882641770,-500.0,0.00024657,2]
[355051918,1740882641779,-422.33335771,0.00024657,2]
[355051919,1740882641789,-503.22753431,0.00024657,2]
[355051920,1740882642050,-500.0,0.00024657,2]
[355051921,1740882642061,-500.0,0.00024657,2]
[355051922,1740882642072,-500.0,0.00024657,2]
[355051923,1740882642082,-500.0,0.00024657,2]
[355051924,1740882642092,-500.0,0.00024657,2]
[355051925,1740882642102,-500.0,0.00024657,2]
[355051926,1740882642111,-500.0,0.00024657,2]
[355051927,1740882642121,-500.0,0.00024657,2]
[355051928,1740882642133,-500.0,0.00024657,2]
[355051929,1740882642145,-500.0,0.00024657,2]
[355051930,1740882642154,-500.0,0.00024657,2]
[355051931,1740882642163,-500.0,0.00024657,2]
[355051932,1740882642175,-500.0,0.00024657,2]
[355051933,1740882642184,-1934.08,0.00024657,2]
[355051934,1740882642193,-500.0,0.00024657,2]
[355051935,1740882642203,-500.0,0.00024657,2]
[355051936,1740882642213,-500.0,0.00024657,2]
[355051937,1740882642223,-500.0,0.00024657,2]
[355051938,1740882642236,-500.0,0.00024657,2]
[355051939,1740882642246,-500.0,0.00024657,2]
[355051940,1740882642255,-2095.11,0.00024657,2]
[355051941,1740882642265,-509.16831827,0.00024657,2]
[355051942,1740882642274,-505.21059054,0.00024657,2]
[355051944,1740882642285,-500.0,0.00024657,2]
[355051946,1740882642294,-500.0,0.00024657,2]
[355051947,1740882642304,-500.0,0.00024657,2]
[355051948,1740882642313,-500.0,0.00024657,2]
[355051949,1740882642323,-1279.69,0.00024657,2]
[355051950,1740882642332,-500.0,0.00024657,2]
[355051951,1740882642343,-500.0,0.00024657,2]
[355051952,1740882642353,-503.50391926,0.00024657,2]
[355051953,1740882642364,-667.54,0.00024657,2]
[355051954,1740882642374,-500.0,0.00024657,2]
[355051955,1740882642384,-500.0,0.00024657,2]
[355051956,1740882642394,-500.0,0.00024657,2]
[355051957,1740882642404,-500.0,0.00024657,2]
[355051958,1740882642414,-500.0,0.00024657,2]
[355051959,1740882642424,-500.0,0.00024657,2]
[355051960,1740882642434,-500.0,0.00024657,2]
[355051961,1740882642444,-500.0,0.00024657,2]
[355051962,1740882642453,-500.0,0.00024657,2]
[355051963,1740882642464,-816.94,0.00024657,2]
[355051964,1740882642474,-530.48567378,0.00024657,2]
[355051965,1740882642487,-510.55786347,0.00024657,2]
[355051966,1740882642497,-1173.65,0.00024657,2]
[355051968,1740882642506,-1000.0,0.00024657,2]
[355051970,1740882642516,-500.0,0.00024657,2]
[355051972,1740882642526,-514.92472943,0.00024657,2]
[355051974,1740882642536,-500.0,0.00024657,2]
[355051976,1740882642548,-500.0,0.00024657,2]
[355051977,1740882642560,-500.0,0.00024657,2]
[355051978,1740882642570,-503.04882339,0.00024657,2]
[355051979,1740882642580,-500.0,0.00024657,2]
[355051980,1740882642590,-500.0,0.00024657,2]
[355051981,1740882642600,-500.0,0.00024657,2]
[355051982,1740882642610,-503.25,0.00024657,2]
[355051983,1740882642620,-500.0,0.00024657,2]
[355051984,1740882642630,-848.62,0.00024657,2]
[355051985,1740882642641,-500.0,0.00024657,2]
[355051986,1740882642651,-500.0,0.00024657,2]
[355051987,1740882642661,-500.0,0.00024657,2]
[355051988,1740882642672,-500.0,0.00024657,2]
[355051989,1740882642682,-1917.91,0.00024657,2]
[355051990,1740882642692,-500.0,0.00024657,2]
[355051991,1740882642702,-500.0,0.00024657,2]
[355051992,1740882642712,-503.17786694,0.00024657,2]
[355051993,1740882642723,-500.0,0.00024657,2]
[355051994,1740882642738,-500.0,0.00024657,2]
[355051995,1740882642749,-500.0,0.00024657,2]
[355051996,1740882642759,-1006.21,0.00024657,2]
[355051997,1740882642770,-500.0,0.00024657,2]
[355051998,1740882642780,-500.0,0.00024657,2]
[355051999,1740882642791,-500.0,0.00024657,2]
[355052000,1740882642800,-500.0,0.00024657,2]
[355052001,1740882642810,-500.0,0.00024657,2]
[355052002,1740882642821,-1339.71,0.00024657,2]
[355052003,1740882642831,-666.47,0.00024657,2]
[355052004,1740882642841,-500.0,0.00024657,2]
[355052005,1740882642852,-514.88278188,0.00024657,2]
[355052006,1740882642861,-500.0,0.00024657,2]
[355052007,1740882642871,-902.27,0.00024657,2]
[355052008,1740882642881,-500.0,0.00024657,2]
[355052009,1740882642891,-500.0,0.00024657,2]
[355052010,1740882642900,-1131.52,0.00024657,2]
[355052011,1740882642911,-2811.74,0.00024657,2]
[355052012,1740882642921,-500.0,0.00024657,2]
[355052013,1740882642930,-500.0,0.00024657,2]
[355052014,1740882642940,-500.0,0.00024657,2]
[355052015,1740882642950,-500.0,0.00024657,2]
[355052016,1740882642960,-500.0,0.00024657,2]
[355052017,1740882642970,-500.0,0.00024657,2]
[355052018,1740882642982,-500.0,0.00024657,2]
[355052019,1740882642991,-500.0,0.00024657,2]
[355052020,1740882643001,-500.0,0.00024657,2]
[355052021,1740882643011,-500.0,0.00024657,2]
[355052022,1740882643020,-500.0,0.00024657,2]
[355052023,1740882643033,-500.0,0.00024657,2]
[355052024,1740882643043,-500.0,0.00024657,2]
[355052026,1740882643054,-500.0,0.00024657,2]
[355052027,1740882643066,-500.0,0.00024657,2]
[355052028,1740882643077,-504.97,0.00024657,2]
[355052029,1740882643087,-500.0,0.00024657,2]
[355052030,1740882643097,-500.0,0.00024657,2]
[355052031,1740882643108,-500.0,0.00024657,2]
[355052032,1740882643118,-500.0,0.00024657,2]
[355052033,1740882643128,-339.29053433,0.00024657,2]
[355052034,1740882643139,-500.0,0.00024657,2]
[355052035,1740882643150,-605.59,0.00024657,2]
[355052036,1740882643162,-454.21199356,0.00024657,2]
[355052037,1740882643172,-500.0,0.00024657,2]
[355052038,1740882643183,-750.24,0.00024657,2]
[355052039,1740882643193,-809.06,0.00024657,2]
[355052040,1740882643202,-500.0,0.00024657,2]
[355052041,1740882643212,-952.75,0.00024657,2]
[355052042,1740882643223,-1031.85,0.00024657,2]
[355052043,1740882643239,-500.0,0.00024657,2]
[355052044,1740882643250,-500.0,0.00024657,2]
[355052045,1740882643260,-500.0,0.00024657,2]
[355052046,1740882643272,-293.01822687,0.00024657,2]
[355052047,1740882643282,-500.0,0.00024657,2]
[355052048,1740882643293,-500.0,0.00024657,2]
[355052049,1740882643303,-500.0,0.00024657,2]
[355052050,1740882643313,-500.0,0.00024657,2]
[355052051,1740882643324,-500.0,0.00024657,2]
[355052052,1740882643334,-985.02,0.00024657,2]
[355052053,1740882643344,-1161.12,0.00024657,2]
[355052054,1740882643355,-714.56,0.00024657,2]
[355052055,1740882643365,-500.0,0.00024657,2]
[355052056,1740882643375,-501.37955132,0.00024657,2]
[355052057,1740882643385,-503.57046256,0.00024657,2]
[355052058,1740882643395,-500.0,0.00024657,2]
[355052059,1740882643405,-500.0,0.00024657,2]
[355052060,1740882643415,-500.0,0.00024657,2]
[355052061,1740882643425,-500.0,0.00024657,2]
[355052062,1740882643435,-500.0,0.00024657,2]
[355052063,1740882643444,-500.0,0.00024657,2]
[355052064,1740882643454,-500.0,0.00024657,2]
[355052065,1740882643463,-500.0,0.00024657,2]
[355052066,1740882643473,-582.03,0.00024657,2]
[355052067,1740882643485,-500.0,0.00024657,2]
[355052068,1740882643495,-500.0,0.00024657,2]
[355052069,1740882643505,-866.64,0.00024657,2]
[355052070,1740882643515,-407.61020794,0.00024657,2]
[355052071,1740882643524,-503.74845309,0.00024657,2]
[355052072,1740882643534,-500.0,0.00024657,2]
[355052073,1740882643544,-500.0,0.00024657,2]
[355052074,1740882643554,-500.0,0.00024657,2]
[355052075,1740882643564,-500.71501597,0.00024657,2]
[355052076,1740882643574,-1204.91,0.00024657,2]
[355052077,1740882643584,-500.0,0.00024657,2]
[355052078,1740882643593,-522.37017032,0.00024657,2]
[355052079,1740882643603,-549.09,0.00024657,2]
[355052080,1740882643613,-500.0,0.00024657,2]
[355052081,1740882643623,-500.0,0.00024657,2]
[355052082,1740882643634,-523.80039163,0.00024657,2]
[355052083,1740882643644,-1246.51,0.00024657,2]
[355052084,1740882643653,-500.0,0.00024657,2]
[355052085,1740882643671,-500.0,0.00024657,2]
[355052086,1740882643681,-500.0,0.00024657,2]
[355052087,1740882643692,-500.0,0.00024657,2]
[355052088,1740882643702,-500.0,0.00024657,2]
[355052089,1740882643711,-667.29,0.00024657,2]
[355052090,1740882643721,-765.3,0.00024657,2]
[355052091,1740882643733,-1220.08,0.00024657,2]
[355052092,1740882643743,-500.0,0.00024657,2]
[355052093,1740882643755,-745.83,0.00024657,2]
[355052094,1740882643765,-500.0,0.00024657,2]
[355052095,1740882643775,-2458.12,0.00024657,2]
[355052096,1740882643786,-505.32232207,0.00024657,2]
[355052097,1740882643796,-500.0,0.00024657,2]
[355052098,1740882643806,-1824.08,0.00024657,2]
[355052099,1740882643817,-500.0,0.00024657,2]
[355052100,1740882643828,-506.48271253,0.00024657,2]
[355052101,1740882643838,-184.73546345,0.00024657,2]
[355052102,1740882643848,-500.0,0.00024657,2]
[355052103,1740882643859,-500.0,0.00024657,2]
[355052104,1740882643868,-501.85842214,0.00024657,2]
[355052105,1740882643878,-1914.36,0.00024657,2]
[355052106,1740882643889,-500.0,0.00024657,2]
[355052107,1740882643899,-500.0,0.00024657,2]
[355052108,1740882643909,-2029.55,0.00024657,2]
[355052109,1740882643919,-500.0,0.00024657,2]
[355052110,1740882643930,-500.0,0.00024657,2]
[355052111,1740882643940,-500.0,0.00024657,2]
[355052112,1740882643950,-500.0,0.00024657,2]
[355052113,1740882643960,-500.0,0.00024657,2]
[355052114,1740882643970,-500.0,0.00024657,2]
[355052115,1740882643982,-500.0,0.00024657,2]
[355052116,1740882643992,-343.6214403,0.00024657,2]
[355052117,1740882644002,-1928.56,0.00024657,2]
[355052118,1740882644012,-500.0,0.00024657,2]
[355052119,1740882644022,-445.39348863,0.00024657,2]
[355052120,1740882644033,-502.42273136,0.00024657,2]
[355052121,1740882644043,-835.93,0.00024657,2]
[355052122,1740882644054,-500.0,0.00024657,2]
[355052123,1740882644065,-500.0,0.00024657,2]
[355052124,1740882644075,-500.0,0.00024657,2]
[355052125,1740882644085,-500.77807206,0.00024657,2]
[355052126,1740882644095,-500.0,0.00024657,2]
[355052127,1740882644105,-500.0,0.00024657,2]
[355052128,1740882644115,-500.88557543,0.00024657,2]
[355052129,1740882644124,-2145.3,0.00024657,2]
[355052130,1740882644139,-928.0,0.00024657,2]
[355052131,1740882644148,-500.0,0.00024657,2]
[355052132,1740882644158,-12080.65,0.00024657,2]
[355052133,1740882644168,-500.0,0.00024657,2]
[355052134,1740882644178,-229019.07,0.00024657,2]
[355052135,1740882644188,-500.0,0.00024657,2]
[355052136,1740882644198,-1231.67,0.00024657,2]
[355052137,1740882644208,-500.0,0.00024657,2]
[355052138,1740882644218,-1705.79,0.00024657,2]
[355052139,1740882644231,-500.0,0.00024657,2]
[355052140,1740882644240,-500.0,0.00024657,2]
[355052141,1740882644250,-500.0,0.00024657,2]
[355052142,1740882644259,-551.12,0.00024657,2]
[355052143,1740882644269,-500.0,0.00024657,2]
[355052144,1740882644280,-500.0,0.00024657,2]
[355052145,1740882644290,-500.0,0.00024657,2]
[355052146,1740882644300,-500.0,0.00024657,2]
[355052147,1740882644309,-500.0,0.00024657,2]
[355052148,1740882644319,-500.0,0.00024657,2]
[355052149,1740882644329,-500.0,0.00024657,2]
[355052150,1740882644339,-500.0,0.00024657,2]
[355052151,1740882644349,-500.0,0.00024657,2]
[355052152,1740882644359,-500.0,0.00024657,2]
[355052153,1740882644369,-500.0,0.00024657,2]
[355052154,1740882644379,-4879.73,0.00024657,2]
[355052155,1740882644388,-500.0,0.00024657,2]
[355052156,1740882644398,-505.67558096,0.00024657,2]
[355052157,1740882644408,-500.0,0.00024657,2]
[355052158,1740882644418,-500.0,0.00024657,2]